bitfinex/quotes_ETHUSD_20250223
["timestamp","ask_amount","ask_price","bid_price","bid_amount"]
[1740295156916,3.98947,2820.5,2817.9,0.1658]
[1740295156917,4.66213555,2818.6,2817.9,0.1658]
[1740295157061,3.0,2818.5,2817.4,3.54926]
[1740295157268,4.66213555,2818.1,2816.8,0.1658]
[1740295157468,3.54975,2817.1,2815.8,0.1658]
[1740295157702,3.55013,2816.8,2815.8,0.1658]
[1740295158002,3.55013,2816.8,2815.4,3.55176]
[1740295158003,3.55214,2815.2,2814.2,0.1]
[1740295158307,4.66213555,2816.1,2813.3,4.07889531]
[1740295158308,3.55303,2814.5,2813.3,4.07889531]
[1740295158507,3.55252,2815.0,2813.6,0.72850037]
[1740295158714,0.355252,2815.0,2813.6,0.72850037]
[1740295158871,3.55431,2813.5,2812.1,3.55605]
[1740295159203,0.445,2815.3,2812.2,1.0679]
[1740295159204,3.5557,2812.4,2812.2,1.0679]
[1740295159414,3.55621,2812.0,2810.5,0.1]
[1740295159596,3.55514,2812.9,2811.2,0.1]
[1740295159822,4.66213555,2813.1,2810.5,3.55803]
[1740295159823,3.55634,2811.9,2810.5,3.55803]
[1740295160130,0.71085528,2813.7,2811.3,0.1]
[1740295160426,1.75458039,2816.1,2810.6,0.355803]
[1740295160427,3.55308,2814.5,2811.4,0.652]
[1740295160629,3.55481,2813.1,2811.0,0.1]
[1740295160832,3.55485,2813.1,2811.8,3.55643]
[1740295161051,3.55614,2812.1,2810.9,3.55748]
[1740295161195,3.55511,2812.9,2811.0,0.355748]
[1740295161196,5.78124805,2812.9,2811.0,0.355748]
[1740295161397,0.0885659,2813.0,2811.1,0.452]
[1740295161398,3.55502,2813.0,2811.1,0.452]
[1740295161642,1.836275,2814.2,2811.9,0.1]
[1740295161801,3.64047283,2812.9,2811.6,3.55669]
[1740295162001,5.78124805,2813.8,2811.6,3.55669]
[1740295162202,0.08540283,2812.8,2812.6,3.0]
[1740295162452,3.55398,2813.8,2812.8,3.55517]
[1740295162599,1.068102,2815.5,2813.3,3.0]
[1740295162959,0.07914562,2813.7,2813.6,6.55416]
[1740295163097,3.55213,2815.3,2813.5,3.0]
[1740295163298,3.55306,2814.5,2813.5,3.55421]
[1740295163497,3.55306,2814.5,2813.6,0.355421]
[1740295163795,0.07914562,2814.4,2813.6,3.0]
[1740295164197,3.55279,2814.7,2813.4,6.55441]
[1740295164431,9.33293805,2815.6,2813.6,3.5541]
[1740295164432,0.07959526,2814.3,2813.6,3.5541]
[1740295164645,9.33293805,2815.6,2813.4,3.0]
[1740295164646,3.55207,2815.3,2813.4,3.0]
[1740295164861,0.07959526,2814.2,2813.4,6.55441]
[1740295165063,9.33290805,2815.6,2813.6,0.55]
[1740295165237,3.55336,2814.3,2813.6,0.55]
[1740295165443,3.55369,2814.0,2813.6,0.55]
[1740295165638,3.55353,2814.2,2813.6,0.55]
[1740295165838,0.08123764,2813.9,2813.6,0.55]
[1740295166073,3.55317,2814.4,2813.6,3.0]
[1740295166364,5.78124805,2816.3,2813.9,0.55]
[1740295166664,3.55227,2815.2,2813.6,3.55]
[1740295166865,3.5538,2813.9,2813.6,0.55]
[1740295167066,3.55227,2815.2,2813.4,3.55]
[1740295167236,0.08093558,2813.8,2813.4,0.55]
[1740295167436,3.55365,2814.1,2813.4,0.55]
[1740295167762,0.08093558,2813.7,2813.4,3.55]
[1740295167963,3.55376,2814.0,2813.4,3.55]
[1740295168128,0.355227,2815.1,2813.3,7.263]
[1740295168464,3.55441,2813.4,2813.3,7.263]
[1740295169162,3.63495056,2813.4,2813.3,7.263]
[1740295169361,3.63495056,2813.4,2812.7,1.10455]
[1740295169362,3.55478,2813.2,2812.7,1.10455]
[1740295169562,3.55318,2814.4,2812.8,3.0]
[1740295169563,0.07983552,2813.1,2812.8,3.0]
[1740295169862,3.55391,2813.8,2813.1,3.55]
[1740295170081,3.55391,2813.8,2813.0,3.55]
[1740295170082,6.13647505,2815.1,2813.0,0.71865491]
[1740295170235,3.55476,2813.2,2813.0,0.71865491]
[1740295170430,3.55446,2813.4,2813.0,0.71865491]
[1740295170668,0.07697331,2813.1,2813.0,4.27357491]
[1740295170830,3.55394,2813.8,2813.1,3.55]
[1740295171163,3.55425,2813.6,2813.1,0.55]
[1740295171370,0.07698106,2813.5,2813.1,0.55]
[1740295171865,3.5542,2813.6,2813.1,0.55]
[1740295172066,3.63149106,2813.4,2813.0,0.71865491]
[1740295172254,3.55476,2813.2,2812.6,0.446]
[1740295172476,0.07698106,2813.3,2812.6,0.446]
[1740295172663,3.55345,2814.2,2812.6,0.86236586]
[1740295172664,3.55476,2813.2,2812.6,0.86236586]
[1740295172870,3.63176434,2813.2,2812.6,0.86236586]
[1740295173071,3.63176434,2813.2,2812.9,0.55]
[1740295173072,0.07700434,2813.2,2812.9,0.55]
[1740295173271,0.07700434,2813.2,2813.1,3.55]
[1740295173612,0.355227,2815.1,2813.1,0.765491]
[1740295173613,3.55265,2814.8,2813.1,0.765491]
[1740295173914,4.35166,2814.9,2813.4,0.55]
[1740295174205,3.5527,2814.8,2813.2,3.0]
[1740295174420,0.7991,2814.9,2812.7,3.71474067]
[1740295174705,5.85808943,2814.7,2812.7,0.71474067]
[1740295174856,5.85808943,2814.7,2812.6,7.705]
[1740295174857,3.55517,2812.8,2812.6,7.26]
[1740295175053,3.5553,2812.7,2812.6,7.95600067]
[1740295175251,3.5553,2812.7,2811.4,3.55687]
[1740295175252,3.55483,2813.1,2811.4,0.443]
[1740295175489,3.55568,2812.4,2811.6,3.55661]
[1740295175660,3.55547,2812.6,2811.4,0.443]
[1740295175861,5.78124805,2814.2,2811.4,0.443]
[1740295175862,3.55581,2812.3,2811.8,0.72725201]
[1740295176070,3.55631,2811.9,2811.4,0.443]
[1740295176357,0.07636013,2812.2,2811.5,3.55676]
[1740295176581,3.5556,2812.5,2811.8,3.0]
[1740295176768,3.55582,2812.3,2811.6,3.399976]
[1740295176973,3.55594,2812.2,2811.6,0.399976]
[1740295177499,3.55614,2812.1,2811.6,0.399976]
[1740295177804,3.5489089,2812.2,2811.4,3.99992]
[1740295178013,0.07598741,2812.0,2811.7,3.55]
[1740295178162,0.7991,2813.3,2811.9,3.55619]
[1740295178163,3.55525,2812.8,2811.9,3.55619]
[1740295178495,3.5567,2811.6,2810.9,3.55757]
[1740295178655,3.55586,2812.3,2811.5,0.70084142]
[1740295178859,0.07598741,2811.5,2809.9,5.86150439]
[1740295179194,3.55651,2811.8,2810.9,3.55748]
[1740295179514,0.07445785,2811.7,2811.1,0.55]
[1740295179661,0.07445785,2811.7,2811.6,3.55]
[1740295180159,3.0,2812.9,2810.1,3.55851]
[1740295180383,3.55843,2810.3,2810.2,0.7066788]
[1740295180560,3.55843,2810.3,2810.0,0.32017756]
[1740295180561,0.07178448,2810.3,2810.0,0.32017756]
[1740295180872,5.51013505,2811.7,2810.0,0.32017756]
[1740295180873,3.55804,2810.6,2810.0,0.32017756]
[1740295181189,3.55754,2811.0,2810.3,3.0]
[1740295181394,3.5576,2810.9,2810.4,0.655839]
[1740295181566,0.07108427,2810.9,2810.8,3.5577]
[1740295181767,0.8151,2812.4,2810.8,3.55]
[1740295181967,0.8151,2812.4,2810.9,3.55756]
[1740295182192,3.55677,2811.6,2810.9,3.55756]
[1740295182488,7.11355,2811.6,2810.9,3.55756]
[1740295182676,3.55682,2811.5,2810.8,3.55762]
[1740295182878,3.55727,2811.2,2810.5,0.57898741]
[1740295183078,3.557,2811.4,2810.6,0.22238264]
[1740295183399,0.07101066,2811.3,2810.7,4.69503505]
[1740295183559,0.7751,2813.3,2811.2,4.69503505]
[1740295183761,3.55613,2812.1,2811.0,4.69503505]
[1740295184006,0.7751,2813.3,2811.0,5.13303505]
[1740295184161,3.55562,2812.5,2811.8,3.55]
[1740295184465,3.55569,2812.4,2811.5,3.55675]
[1740295184671,3.62678627,2812.4,2811.7,4.10656]
[1740295185097,0.07109627,2812.4,2812.3,3.55]
[1740295185279,0.69919903,2813.6,2812.4,3.0]
[1740295185485,3.55541,2812.7,2812.1,0.55]
[1740295185810,3.55454,2813.3,2811.9,0.71722771]
[1740295186114,0.7751,2814.2,2811.9,0.71722771]
[1740295186115,0.0071725,2812.8,2811.9,0.71722771]
[1740295186399,0.0071725,2812.8,2811.5,3.55675]
[1740295186400,3.55587,2812.3,2811.5,3.55675]
[1740295186558,0.07189755,2812.2,2811.6,3.55]
[1740295186912,0.07189755,2812.2,2812.1,0.72649145]
[1740295187118,0.0071725,2812.8,2812.1,0.72649145]
[1740295187266,0.07229419,2812.2,2812.1,0.72649145]
[1740295187463,3.55583,2812.3,2812.1,0.72649145]
[1740295187663,0.07229419,2812.2,2812.1,0.72649145]
[1740295187893,3.55583,2812.3,2812.1,0.72649145]
[1740295188109,3.55631,2811.9,2811.8,0.26022296]
[1740295188412,3.55623,2812.0,2811.8,0.26022296]
[1740295188572,3.5558,2812.4,2811.8,3.81658296]
[1740295188772,3.55544,2812.6,2811.9,3.5563]
[1740295189005,3.55544,2812.6,2812.0,0.55]
[1740295189162,0.0071725,2812.8,2812.0,0.55]
[1740295189362,0.0071725,2812.8,2812.5,3.0]
[1740295189656,0.0071725,2812.8,2812.2,4.10589]
[1740295189657,3.5623525,2812.8,2812.3,3.55]
[1740295190001,0.0071725,2812.8,2812.2,0.7119545]
[1740295190301,3.55533,2812.7,2812.2,3.0]
[1740295190457,3.55556,2812.5,2812.2,0.55]
[1740295190662,3.55534,2812.7,2812.2,3.55]
[1740295191070,7.1176825,2812.8,2812.2,3.55]
[1740295191298,0.0722864,2812.6,2812.3,3.0]
[1740295191514,3.5624125,2812.8,2812.3,3.32519959]
[1740295191690,0.0722864,2812.5,2812.3,3.88090959]
[1740295192031,0.0071725,2812.8,2812.6,0.55]
[1740295192203,0.0071725,2812.8,2812.7,3.5553]
[1740295192389,0.0794589,2812.8,2812.4,3.0]
[1740295192925,0.0794589,2812.8,2812.7,3.5553]
[1740295193120,0.0794589,2812.8,2812.7,7.1053]
[1740295193320,0.0071725,2812.8,2812.7,7.1053]
[1740295193501,0.0071725,2812.8,2812.7,7.43049959]
[1740295194100,0.0071725,2812.8,2812.7,3.32519959]
[1740295194402,0.0071725,2812.8,2812.7,3.88049959]
[1740295194726,0.06825585,2812.8,2812.7,10.00633965]
[1740295194894,2.5e-06,2812.8,2812.7,10.00633965]
[1740295195321,2.5e-06,2812.8,2812.7,10.53734717]
[1740295196403,3.55229,2815.1,2814.0,3.55]
[1740295196728,0.005,2815.5,2814.3,3.55317]
[1740295196729,0.06871307,2814.8,2814.3,3.55317]
[1740295196925,3.55299,2814.6,2813.9,3.55374]
[1740295197127,3.55277,2814.7,2813.9,3.55371]
[1740295197442,0.72273806,2814.9,2813.9,0.55]
[1740295197593,0.005,2815.5,2814.0,3.0]
[1740295197798,3.55282,2814.7,2814.1,3.55346]
[1740295198200,3.55282,2814.7,2814.2,6.55331]
[1740295198402,0.06886882,2814.6,2813.9,0.55]
[1740295198601,0.06886882,2814.6,2814.3,3.55325]
[1740295198813,3.55268,2814.8,2814.3,3.0]
[1740295199013,3.55208,2815.3,2814.5,3.55296]
[1740295199212,0.0693826,2815.2,2814.6,3.55285]
[1740295199412,3.91429726,2815.2,2814.2,3.32519959]
[1740295199613,0.06956939,2815.1,2814.2,0.32519959]
[1740295199841,0.06956939,2815.1,2814.6,3.55278]
[1740295200148,0.06956939,2815.1,2814.6,3.55287]
[1740295200304,3.62189939,2815.1,2814.6,3.55287]
[1740295200621,0.06956939,2815.1,2814.5,3.55]
[1740295200936,0.06956939,2815.1,2814.8,3.55257]
[1740295201319,3.55193,2815.4,2814.9,3.55252]
[1740295201517,0.06956939,2815.0,2814.9,4.10252]
[1740295201842,0.005,2815.5,2815.1,3.55219]
[1740295202036,0.005,2815.5,2815.4,3.55189]
[1740295202344,0.005,2815.5,2815.4,7.10189]
[1740295202843,0.005,2815.5,2814.5,0.68723281]
[1740295203043,3.55247,2815.0,2814.5,3.55295]
[1740295203251,0.005,2815.5,2814.9,3.7292864]
[1740295203543,3.55685,2815.5,2814.9,7.2817764]
[1740295203839,0.005,2815.5,2814.7,3.0]
[1740295204045,0.005,2815.5,2814.0,3.0]
[1740295204046,4.70003505,2815.5,2813.6,0.27306874]
[1740295204202,0.54980351,2815.4,2813.5,3.55429]
[1740295204410,3.55247,2815.0,2814.4,3.55313]
[1740295204709,0.005,2815.5,2814.4,3.55313]
[1740295204710,0.005,2815.5,2815.0,3.55231]
[1740295204912,3.55231,2815.1,2814.5,3.55295]
[1740295205331,3.55231,2815.1,2814.6,3.0]
[1740295205862,3.55249,2815.0,2814.5,3.0]
[1740295206058,3.5526,2814.9,2814.3,3.55319]
[1740295206406,0.07107173,2814.8,2814.4,4.10307]
[1740295206841,0.07107173,2814.8,2814.4,0.55]
[1740295207042,0.07107173,2814.8,2814.5,3.55302]
[1740295207244,3.62372173,2814.8,2813.8,3.97386]
[1740295207540,3.55302,2814.6,2814.0,3.55358]
[1740295207744,3.55297,2814.6,2814.1,3.0]
[1740295207923,0.07093171,2814.5,2814.1,3.0]
[1740295208118,0.07093171,2814.5,2814.3,3.55318]
[1740295208446,0.005,2815.5,2814.2,3.0]
[1740295208645,3.55271,2814.8,2814.3,0.70641463]
[1740295208846,0.07086947,2814.4,2814.3,3.70641463]
[1740295209049,0.005,2815.5,2814.3,7.80969463]
[1740295209236,0.005,2815.5,2814.8,0.55]
[1740295209411,1e-05,2815.5,2815.4,7.10189]
[1740295209744,1e-05,2815.5,2815.4,10.86589]
[1740295210023,0.798,2817.7,2816.8,3.55007]
[1740295210172,0.798,2817.7,2816.7,3.0]
[1740295210173,0.99815,2817.7,2816.7,3.0]
[1740295210341,3.54942,2817.4,2816.8,3.55005]
[1740295210526,3.54911,2817.6,2816.7,3.0]
[1740295210732,3.54911,2817.6,2816.4,3.55055]
[1740295210733,3.55028,2816.7,2815.4,0.71281718]
[1740295210934,4.54719,2817.7,2816.6,3.5503]
[1740295211170,3.54975,2817.1,2816.6,3.5503]
[1740295211463,3.5496,2817.3,2816.6,0.55]
[1740295211763,3.54942,2817.4,2816.7,7.10042]
[1740295211984,0.798,2817.7,2816.3,3.0]
[1740295212268,0.798,2817.7,2816.0,3.55109]
[1740295212269,0.72429124,2817.5,2816.0,3.5511]
[1740295212441,3.55083,2816.3,2815.6,3.55163]
[1740295212644,3.55096,2816.2,2815.6,3.55163]
[1740295212845,3.55102,2816.1,2815.4,7.10365]
[1740295213042,3.54974,2817.1,2815.2,3.55208]
[1740295213236,7.10268,2815.9,2815.3,3.55194]
[1740295213438,7.10268,2815.9,2814.5,4.69503505]
[1740295213439,4.34851,2816.5,2814.3,1.29206132]
[1740295213646,0.798,2816.5,2814.6,3.5529]
[1740295213851,0.798,2816.5,2816.0,3.55112]
[1740295213852,0.70735957,2816.3,2816.0,3.55112]
[1740295214059,0.71582541,2816.7,2815.3,0.417]
[1740295214247,3.55077,2816.3,2815.5,3.5517]
[1740295214431,3.55071,2816.4,2815.7,3.5514]
[1740295214636,0.798,2817.5,2815.3,0.417]
[1740295214637,3.55104,2816.1,2815.5,3.55173]
[1740295214836,3.5508,2816.3,2815.7,3.0]
[1740295215065,0.798,2817.5,2815.9,3.55119]
[1740295215066,3.55032,2816.7,2815.9,3.55119]
[1740295215267,3.55065,2816.4,2815.4,0.55]
[1740295215441,0.72649663,2817.1,2814.9,0.419]
[1740295215643,3.55137,2815.9,2815.3,3.552]
[1740295215965,3.55137,2815.9,2815.1,3.55219]
[1740295215966,3.55158,2815.7,2815.1,3.55219]
[1740295216167,0.798,2816.3,2815.0,0.55]
[1740295216333,0.798,2816.3,2814.4,0.42]
[1740295216539,3.55196,2815.4,2814.7,3.55265]
[1740295216736,3.55169,2815.6,2814.9,3.55244]
[1740295216956,3.55089,2816.2,2815.6,3.55154]
[1740295217167,3.55109,2816.1,2815.4,3.5518]
[1740295217368,3.55109,2816.1,2815.4,7.10357]
[1740295217673,3.55139,2815.8,2815.3,3.55]
[1740295217873,3.5523,2815.1,2814.5,3.55297]
[1740295218183,3.55137,2815.9,2815.2,3.0]
[1740295218480,0.05623533,2815.8,2815.4,3.0]
[1740295218987,0.798,2816.3,2815.3,0.55]
[1740295219195,0.05622751,2815.7,2814.6,3.0]
[1740295219336,0.757,2817.1,2816.6,3.55029]
[1740295219689,0.05622751,2817.0,2816.4,3.5506]
[1740295219982,0.05622751,2817.0,2816.1,0.55]
[1740295219983,0.69710375,2816.9,2816.5,3.55043]
[1740295220152,0.05622751,2817.0,2816.1,3.71716121]
[1740295220356,0.05579856,2816.8,2816.6,3.55036]
[1740295220566,4.30675,2817.1,2816.6,3.55036]
[1740295220871,0.05614955,2816.7,2816.5,3.55043]
[1740295221165,0.05614955,2817.0,2816.8,3.55008]
[1740295221394,0.05614955,2817.0,2816.4,3.55]
[1740295221395,0.757,2817.6,2816.5,3.5505]
[1740295221680,0.69376083,2817.7,2816.2,4.69503505]
[1740295221854,0.005,2818.3,2817.5,3.54924]
[1740295222060,3.54844,2818.2,2817.5,3.54924]
[1740295222278,3.54844,2818.2,2817.6,3.54909]
[1740295222691,0.69674812,2818.1,2817.5,0.69582348]
[1740295222863,0.005,2818.3,2817.5,4.24506348]
[1740295223064,0.005,2818.3,2817.7,3.54899]
[1740295223462,0.005,2818.3,2817.7,3.0]
[1740295223682,3.55326,2818.3,2817.7,3.0]
[1740295223885,3.54861,2818.0,2817.7,3.0]
[1740295224182,3.54867,2818.0,2817.5,0.69582348]
[1740295224351,3.54841,2818.2,2817.2,0.71435931]
[1740295224552,3.54874,2817.9,2817.4,3.54935]
[1740295224786,1.276524,2817.7,2816.1,0.67171612]
[1740295225089,0.8013,2817.7,2817.3,3.54948]
[1740295225380,4.25383191,2818.1,2817.5,3.54915]
[1740295225679,3.54873,2818.0,2817.3,3.54945]
[1740295226086,0.8063,2818.3,2817.7,6.54899]
[1740295226255,0.005,2818.3,2817.7,3.54899]
[1740295226584,0.005,2818.3,2818.2,3.54836]
[1740295226759,0.005,2818.3,2817.6,3.54911]
[1740295226964,0.005,2818.3,2817.6,3.55]
[1740295227187,0.05084238,2818.2,2818.1,3.54849]
[1740295227681,0.005,2818.3,2818.1,3.54849]
[1740295228084,0.005,2818.3,2818.2,3.54836]
[1740295228269,0.005,2818.3,2818.2,7.808045]
[1740295228807,0.005,2818.9,2818.8,3.5476]
[1740295228977,0.005,2818.9,2818.2,4.40819493]
[1740295228978,0.005,2818.9,2818.6,3.54785]
[1740295229181,0.005,2818.9,2818.2,3.69850993]
[1740295229515,0.005,2818.9,2818.5,3.54798]
[1740295229816,0.005,2818.9,2818.5,3.5479]
[1740295230310,0.005,2818.9,2818.8,3.5476]
[1740295230514,0.005,2818.9,2818.3,3.0]
[1740295230515,0.005,2818.9,2818.5,3.5479]
[1740295230721,0.005,2818.9,2818.8,3.5476]
[1740295230893,0.005,2818.9,2818.8,7.0976]
[1740295231614,0.005,2818.9,2818.8,3.0]
[1740295231802,3.45214,2819.2,2818.5,3.54788]
[1740295231983,0.71869479,2819.9,2818.5,3.54788]
[1740295232178,3.54729,2819.1,2818.6,3.55]
[1740295232410,3.5472,2819.2,2818.6,0.55]
[1740295232618,0.8063,2821.9,2818.8,3.55]
[1740295232816,0.8063,2821.9,2820.5,0.26087071]
[1740295232979,3.54418,2821.6,2820.5,0.26087071]
[1740295233302,3.54447,2821.3,2820.6,3.54523]
[1740295233503,3.54448,2821.3,2820.7,3.0]
[1740295233680,3.54448,2821.3,2820.6,3.54523]
[1740295233681,0.08383847,2821.2,2820.5,0.55]
[1740295234014,3.54471,2821.1,2819.1,0.413]
[1740295234320,3.54606,2820.1,2819.2,1.065408]
[1740295234478,3.54653,2819.7,2818.9,0.26100393]
[1740295234815,3.54624,2819.9,2819.1,3.54713]
[1740295235112,3.54672,2819.5,2818.1,8.24345505]
[1740295235313,3.63071862,2819.8,2819.2,0.717823]
[1740295235624,3.90946186,2819.8,2819.0,0.71078901]
[1740295235818,3.54712,2819.2,2819.0,0.71078901]
[1740295236120,0.8063,2819.5,2817.8,1.065884]
[1740295236326,0.08436862,2819.1,2818.5,0.71363103]
[1740295236538,3.54781,2818.7,2818.5,0.71363103]
[1740295236830,3.54786,2818.6,2818.0,10.7966]
[1740295237007,3.54807,2818.5,2818.0,7.248]
[1740295237195,3.54807,2818.5,2818.3,0.7166862]
[1740295237196,3.54811,2818.4,2818.3,0.7166862]
[1740295237399,0.08323426,2818.4,2818.3,0.7166862]
[1740295237600,3.54699,2819.3,2817.5,3.54917]
[1740295237601,3.5473,2819.1,2817.5,3.54917]
[1740295237922,3.54869,2818.0,2817.3,3.5494]
[1740295238130,3.5492,2817.6,2817.0,3.54986]
[1740295238289,3.54922,2817.6,2817.0,4.27275985]
[1740295238486,0.0828909,2817.5,2817.0,4.27268985]
[1740295238927,0.8039,2818.3,2817.8,3.54883]
[1740295239118,0.8039,2818.3,2817.2,3.54962]
[1740295239119,0.08238347,2817.4,2817.2,3.54962]
[1740295239319,3.54899,2817.7,2817.1,3.5497]
[1740295239519,3.54932,2817.5,2817.0,0.72288985]
[1740295239718,3.54945,2817.4,2817.0,0.72288985]
[1740295239919,3.54872,2818.0,2817.0,0.72288985]
[1740295240119,3.54847,2818.2,2817.4,3.54928]
[1740295240323,3.54899,2817.7,2817.0,4.27271985]
[1740295240523,3.54881,2817.9,2817.2,3.54958]
[1740295240701,0.50793106,2818.2,2817.2,3.54952]
[1740295240901,0.8039,2818.3,2817.5,3.54923]
[1740295241106,3.54851,2818.1,2817.5,3.54923]
[1740295241317,3.54851,2818.1,2817.3,3.54946]
[1740295241318,3.54877,2817.9,2817.3,3.54946]
[1740295241516,3.54889,2817.8,2817.3,3.54946]
[1740295241729,3.54877,2817.9,2817.3,3.54946]
[1740295242232,3.54939,2817.4,2817.3,0.71301158]
[1740295242526,3.54922,2817.6,2817.3,0.71301158]
[1740295243029,3.54937,2817.4,2816.8,0.55]
[1740295243193,3.54988,2817.0,2816.5,3.55043]
[1740295243394,3.5492,2817.6,2816.3,7.92096563]
[1740295243699,3.54849,2818.1,2816.3,11.20367]
[1740295243902,3.55,2816.9,2816.3,7.247]
[1740295244110,3.55,2816.9,2816.4,3.55063]
[1740295244411,3.55032,2816.7,2816.4,0.69780332]
[1740295244743,7.10123,2816.5,2815.9,3.55116]
[1740295245068,0.71926545,2816.9,2816.0,0.72651425]
[1740295245536,0.71926545,2816.9,2815.6,3.55156]
[1740295245537,3.55146,2815.8,2815.0,3.55239]
[1740295245719,3.55037,2816.6,2815.0,0.38146792]
[1740295245942,3.55203,2815.3,2814.7,3.55276]
[1740295246256,3.55164,2815.6,2814.1,0.005]
[1740295246535,3.55074,2816.4,2815.7,3.5515]
[1740295246735,3.55109,2816.1,2815.3,3.0]
[1740295246913,3.55142,2815.8,2815.3,3.0]
[1740295247111,3.55177,2815.5,2814.9,3.55244]
[1740295247537,3.54945,2817.4,2814.9,0.355244]
[1740295247750,3.55097,2816.2,2814.6,0.406]
[1740295247904,3.55074,2816.4,2815.4,3.55178]
[1740295248099,3.55074,2816.4,2814.6,0.406]
[1740295248100,4.69503505,2817.4,2815.3,3.55201]
[1740295248440,3.54971,2817.2,2816.2,3.55088]
[1740295248615,3.54899,2817.7,2815.9,3.55123]
[1740295248616,3.54975,2817.1,2816.5,3.55042]
[1740295248817,0.0704421,2816.7,2816.3,7.1014]
[1740295249027,0.69808697,2817.3,2815.9,3.55126]
[1740295249333,0.0704421,2816.7,2816.6,4.25848246]
[1740295249740,3.54966,2817.2,2816.6,4.25848246]
[1740295250034,3.54966,2817.2,2816.5,3.5505]
[1740295250336,3.55026,2816.7,2815.6,4.25958026]
[1740295250510,3.55026,2816.7,2816.1,3.55091]
[1740295250715,0.07114759,2816.6,2816.2,3.55087]
[1740295250934,0.07114759,2816.6,2816.1,7.10185]
[1740295251241,0.71806685,2816.9,2815.7,0.55]
[1740295251433,3.54996,2817.0,2816.4,3.55063]
[1740295251636,0.7194889,2817.0,2816.1,0.55]
[1740295251811,0.07126516,2816.9,2816.8,3.55003]
[1740295252136,0.7538,2817.3,2816.8,3.55008]
[1740295252137,5.01571863,2817.3,2816.8,3.55008]
[1740295252328,0.06878512,2816.9,2816.8,3.55008]
[1740295252529,0.7538,2817.3,2816.8,3.55008]
[1740295252837,0.06894987,2816.9,2816.3,3.0]
[1740295253160,0.06910678,2816.8,2816.7,3.55014]
[1740295253307,0.06910678,2816.8,2816.3,3.0]
[1740295253639,1.44927347,2817.3,2816.5,3.55]
[1740295253852,0.7588,2817.9,2817.4,3.54936]
[1740295254041,3.54888,2817.8,2817.2,3.54961]
[1740295254204,3.54888,2817.8,2817.2,7.09916]
[1740295254410,3.54888,2817.8,2817.3,3.54948]
[1740295254642,3.54888,2817.8,2816.8,0.55]
[1740295254643,3.54945,2817.4,2816.1,5.09403505]
[1740295254823,3.54899,2817.8,2817.0,3.54977]
[1740295255169,3.54986,2817.1,2816.5,3.0]
[1740295255376,3.54999,2817.0,2816.2,3.960873]
[1740295255541,3.54999,2817.0,2816.0,3.55113]
[1740295255741,3.55007,2816.9,2815.9,0.399]
[1740295255949,0.06455428,2816.9,2816.0,3.55113]
[1740295256159,0.06455428,2816.9,2816.8,3.55012]
[1740295256363,3.54907,2817.7,2817.1,3.54965]
[1740295256554,3.5493,2817.5,2816.9,3.54997]
[1740295256755,0.06476649,2817.6,2816.7,3.55018]
[1740295256948,3.54952,2817.3,2816.7,3.55018]
[1740295257242,3.61443649,2817.2,2816.5,3.55038]
[1740295257743,0.06476649,2817.2,2816.1,0.55]
[1740295257944,3.61440649,2817.2,2816.6,3.5503]
[1740295258139,3.61440649,2817.2,2816.4,3.55059]
[1740295258140,3.54964,2817.2,2816.4,3.55053]
[1740295258374,0.06476649,2817.1,2816.1,0.55]
[1740295258560,0.06476649,2817.1,2816.9,3.54999]
[1740295258765,3.54944,2817.4,2816.9,3.54999]
[1740295258966,0.06476649,2817.0,2816.9,3.54999]
[1740295259166,3.54933,2817.5,2816.7,3.55021]
[1740295259167,3.54956,2817.3,2816.7,3.55015]
[1740295259367,0.06460142,2817.0,2816.7,3.55015]
[1740295259675,3.54956,2817.3,2816.6,3.55035]
[1740295259857,0.06460142,2817.2,2816.7,3.55019]
[1740295260176,3.54995,2817.0,2816.4,6.55054]
[1740295260547,3.54978,2817.1,2816.5,3.55049]
[1740295260881,3.55021,2816.8,2816.3,3.55066]
[1740295261074,4.69503505,2818.1,2815.8,3.94533]
[1740295261075,0.06460142,2816.7,2815.9,0.55]
[1740295261257,3.5489,2817.8,2816.6,3.55037]
[1740295261459,3.5489,2817.8,2816.2,4.10088]
[1740295261460,3.54858,2818.1,2817.1,3.54974]
[1740295261772,3.54858,2818.1,2816.2,3.55]
[1740295261773,3.54938,2817.4,2816.9,3.54992]
[1740295261993,0.06427235,2817.8,2816.5,0.55]
[1740295262178,3.54869,2818.0,2817.3,3.54943]
[1740295262493,3.6130323,2817.8,2817.3,3.54943]
[1740295262891,3.6130323,2817.8,2816.5,8.63703505]
[1740295262892,0.0641623,2817.8,2816.5,5.08703505]
[1740295263217,0.0641623,2817.8,2817.7,3.54899]
[1740295263583,0.005,2817.9,2817.8,3.54886]
[1740295264300,0.005,2817.9,2817.8,7.09886]
[1740295265208,0.005,2817.9,2817.8,6.54886]
[1740295266116,0.005,2817.9,2817.4,0.55]
[1740295266281,0.005,2817.9,2817.8,3.54886]
[1740295266671,0.06831094,2817.9,2817.8,3.54886]
[1740295266870,0.005,2817.9,2817.7,3.54898]
[1740295267080,0.005,2817.9,2817.1,3.54969]
[1740295267280,3.54886,2817.8,2816.9,0.389]
[1740295267703,3.54918,2817.6,2816.8,3.55003]
[1740295267902,3.54932,2817.5,2816.6,3.55037]
[1740295268106,3.613032,2817.5,2816.8,3.55004]
[1740295268270,0.063712,2817.5,2817.2,3.54955]
[1740295268599,3.54893,2817.8,2817.1,3.54967]
[1740295268802,3.54893,2817.8,2816.8,3.0]